Workbook

Sheet Stores
E1: AHDB Beef and Lamb
E2: Stocktake
E3: Costs of Production 2015/16
D5: Beef Stores
C7: (£ per head output) | G7: (£ per lwt kg output)
A8: Financial Performance (£ per head output) | B8: Bottom Third | C8: Average | D8: Top Third | F8: Bottom Third | G8: Average | H8: Top Third
A10: Number of herds in sample | B10: 15 | C10: 45 | D10: 15 | F10: =B10 -> 15 | G10: =C10 -> 45 | H10: 15
A11: Average head of output | B11: 33.06666667 | C11: 52.51111111 | D11: 66.8 | F11: =B11 -> 33.06666667 | G11: 52.51111111 | H11: 66.8
A13: Cattle output | B13: 900.4685484 | C13: 927.8506983 | D13: 987.2698902 | F13: =B13/B$61 -> 2.058213823 | G13: 1.944303377 | H13: 1.956850013
A14: Other income | B14: 3.549133065 | C14: 3.284117647 | D14: 5.988023952 | F14: 0.008112304141 | G14: 0.006881841057 | H14: 0.01186875531
A15: Gross Output | B15: 904.0176815 | C15: 931.1348159 | D15: 993.2579142 | F15: 2.066326127 | G15: 1.951185218 | H15: 1.968718769
A16: Purchase costs | B16: 666.9768145 | C16: 593.6740499 | D16: 558.5953393 | F16: 1.524518432 | G16: 1.244039005 | H16: 1.107181844
A17: Output less purchase costs | B17: 237.0408669 | C17: 337.460766 | D17: 434.6625749 | F17: 0.5418076954 | G17: 0.7071462122 | H17: 0.8615369251
A19: Variable Costs
A20: Purchased feed including minerals | B20: 107.2952499 | C20: 66.34694527 | D20: 50.64836128 | F20: =B20/B$61 -> 0.2452462852 | G20: =C20/C$61 -> 0.1390294688 | H20: =D20/D$61 -> 0.1003892121
A21: Home-grown feed | B21: 15.77620968 | C21: 11.53484587 | D21: 8.170678643 | F21: 0.03605990781 | G21: 0.02417117304 | H21: 0.01619495618
A22: Purchased forage | B22: 1.607862903 | C22: 9.687410072 | D22: 19.91402196 | F22: 0.003675115205 | G22: 0.02029988677 | H22: 0.03947122719
A23: Home-grown forage (excludes contract) | B23: 13.37574213 | C23: 18.50545109 | D23: 19.25139771 | F23: 0.03057312484 | G23: 0.03877801795 | H23: 0.03815785151
A24: Total feed and forage | B24: 138.0550646 | C24: 106.0746523 | D24: 97.98445959 | F24: 0.3155544331 | G24: 0.2222785466 | H24: 0.194213247
A25: Vet and medicine | B25: 12.11532258 | C25: 9.875730004 | D25: 9.935578842 | F25: 0.02769216588 | G25: 0.02069450961 | H25: 0.01969313334
A26: Bedding | B26: 22.59715726 | C26: 29.13716462 | D26: 34.53118762 | F26: 0.05165064512 | G26: 0.06105668473 | H26: =D26/D$61 -> 0.06844365015
A27: Other livestock expenses | B27: 26.89270161 | C27: 22.01951756 | D27: 24.46820359 | F27: 0.06146903221 | G27: 0.04614171485 | H27: 0.04849798926
A28: Total variable costs | B28: 199.660246 | C28: 167.1070645 | D28: 166.9194296 | F28: 0.4563662763 | G28: 0.3501714558 | H28: 0.3308480198
A30: Gross Margin | B30: 37.38062092 | C30: 170.3537015 | D30: 267.7431452 | F30: =B30/B$61 -> 0.08544141917 | G30: =C30/C$61 -> 0.3569747564 | H30: =D30/D$61 -> 0.5306889053
A32: Fixed Costs
A33: Labour - paid | B33: 15.92980691 | C33: 21.38103021 | D33: 24.5329102 | F33: =B33/B$61 -> 0.03641098719 | G33: =C33/C$61 -> 0.04480376994 | H33: =D33/D$61 -> 0.04862624307
A34: Machinery repairs and spares | B34: 24.44097609 | C34: 14.01989288 | D34: 9.011403913 | F34: 0.05586508816 | G34: 0.02937856825 | H34: 0.01786134272
A35: Contracting | B35: 12.77134183 | C35: 12.73153526 | D35: 13.04263995 | F35: 0.02919163846 | G35: 0.02667882564 | H35: 0.02585158366
A36: Electricity | B36: 3.309879032 | C36: 1.78192975 | D36: 1.52994012 | F36: 0.007565437782 | G36: 0.003734018886 | H36: 0.003032466982
A37: Fuel | B37: 22.59873843 | C37: 14.09995062 | D37: 11.23354167 | F37: 0.05165425923 | G37: 0.02954632858 | H37: 0.02226580227
A38: Property maintenance and water | B38: 11.49754114 | C38: 14.22259562 | D38: 11.2057483 | F38: 0.02628009402 | G38: 0.02980333015 | H38: 0.02221071353
A39: Land Rent (Actual) | B39: 20.86972464 | C39: 24.03367395 | D39: 19.85093009 | F39: 0.04770222771 | G39: 0.05036236271 | H39: 0.03934617393
A40: Overheads | B40: 47.02559714 | C40: 33.069837 | D40: 23.86182572 | F40: 0.1074870791 | G40: 0.0692975668 | H40: 0.0472960985
A41: Cash Only fixed costs | B41: 158.4436052 | C41: 135.3404453 | D41: 114.26894 | F41: 0.3621568116 | G41: 0.2836047709 | H41: 0.2264904247
A42: Cash Only Cost of Production | B42: 1025.080666 | C42: 896.1215597 | D42: 839.7837089 | F42: 2.34304152 | G42: 1.877815232 | H42: 1.664520288
A43: Cash Only Net Margin | B43: -121.0629843 | C43: 35.0132562 | D43: 153.4742052 | F43: -0.2767153925 | G43: 0.07336998547 | H43: 0.3041984807
A45: Depreciation | B45: 84.48366842 | C45: 49.94658127 | D45: 44.04492407 | F45: =B45/B$61 -> 0.1931055277 | G45: 0.1046626432 | H45: 0.0873006572
A46: Finance costs (Imputed) | B46: 22.52623525 | C46: 18.90615842 | D46: 20.31637094 | F46: 0.05148853768 | G46: 0.03961769681 | H46: 0.04026871592
A47: Labour - unpaid (Imputed) | B47: 54.75789565 | C47: 35.37597115 | D47: 27.28717874 | F47: 0.1251609043 | G47: 0.07413005162 | H47: 0.05408542954
A48: Land Rent (Imputed) | B48: 16.39764079 | C48: 18.13066631 | D48: 19.85093009 | F48: 0.03748032177 | G48: 0.03799265959 | H48: 0.03934617393
A49: Non-Cash fixed costs | B49: 178.1654401 | C49: 122.3593771 | D49: 111.4994038 | F49: 0.4072352914 | G49: 0.2564030512 | H49: 0.2210009766
A50: Full Investment fixed costs | B50: 336.6090453 | C50: 257.6998224 | D50: 225.7683438 | F50: 0.769392103 | G50: 0.5400078222 | H50: 0.4474914013
A51: Full Investment Cost of Production (inc purchase costs) | B51: 1203.246106 | C51: 1018.480937 | D51: 951.2831128 | F51: 2.750276811 | G51: 2.134218283 | H51: 1.885521265
A52: Full Investment Net Margin | B52: -299.2284244 | C52: -87.34612095 | D52: 41.97480141 | F52: -0.6839506839 | G52: -0.1830330658 | H52: 0.08319750407
A55: Physical Performance
A56: Mortality % | B56: 0.5696835186 | C56: 0.2858856989 | D56: 0.1977841183
A57: Average age at start (days) | B57: 228.6713702 | C57: 220.4164197 | D57: 210.1886228
A58: Average age at sale (days) | B58: 461.8608881 | C58: 464.9462546 | D58: 499.5499002
A59: Feeding period (days) | B59: 233.1895179 | C59: 244.5298349 | D59: 289.3612774
A60: Average liveweight at start (kg) | B60: 298.9426057 | C60: 286.8422938 | D60: 278.0176942
A61: Average liveweight at sale (kg) | B61: 437.5000003 | C61: 477.2149807 | D61: 504.5199598
A62: Daily liveweight gain (kg per day) | B62: 0.6343234081 | C62: 0.8013561919 | D62: 0.8085213045
A65: Purchase value per head (£) | B65: 663.5350324 | C65: 592.0865941 | D65: 557.5515745
A66: Return per head finished (£) | B66: 894.1611765 | C66: 1097.918619 | D66: 1132.413519
A67: Return per head store (£) | B67: 900.6924008 | C67: 913.7433226 | D67: 979.0022152
A69: Purchase price (£ per kg lwt) | B69: 2.235351142 | C69: 2.080815736 | D69: 2.037407344
A70: Liveweight sale price all animals (£ per kg lwt) | B70: 2.066385491 | C70: 1.9666065 | D70: 1.967535542
A74: Finished (%) | B74: 3.427419355 | C74: 7.659754549 | D74: 5.389221557
A75: Store (%) | B75: 96.57258065 | C75: 92.34024545 | D75: 94.61077844
A76: Output heifers (%) | B76: 37.90322581 | C76: 47.1434617 | D76: 45.80838323
A77: Output steers (%) | B77: 39.91935484 | C77: 43.71561574 | D77: 54.19161677
A78: Output bulls (%) | B78: 22.17741935 | C78: 9.140922556 | D78: 0
A80: Total FW concentrate use (kg per head) | B80: 642.44355 | C80: 592.9974626 | D80: 702.7944112
A81: Total DM concentrate use (kg per head) | B81: 555.3792756 | C81: 364.7716562 | D81: 313.2213573
A82: Average concentrate cost (£ per tonne) | B82: 184.8528136 | C82: 153.2932667 | D82: 126.4164383
A83: Total FW forage (kg per head) | B83: 2954.173383 | C83: 2787.291578 | D83: 3062.47505
A84: Total DM forage (Kg per head) | B84: 825.9667326 | C84: 874.6256874 | D84: 850.4051896
A86: Number of full grazing weeks | B86: 10.14428284 | C86: 16.48662187 | D86: 23.57607183
A87: Stocking rate (LU per ha) | B87: 1.282561954 | C87: 1.297677171 | D87: 1.600216498
A88: Inorganic nitrogen use (kg per ha) | B88: 58.97459637 | C88: 52.27480052 | D88: 63.32556269
A91: Labour use - paid hours per head | B91: 1.731522437 | C91: 2.02992161 | D91: 2.153448853
A92: Labour use - unpaid hours per head | B92: 5.996395483 | C92: 3.61517434 | D92: 2.74738515

Sheet U16 months
E1: AHDB Beef and Lamb
E2: Stocktake
E3: Costs of Production 2015/16
C5: Beef Finishing - up to 16 months of age
C7: (£ per head output) | G7: (£ per dwt kg output)
A8: Financial Performance (£ per head output) | B8: Bottom Half | C8: Average | D8: Top Half | F8: Bottom Half | G8: Average | H8: Top Half
A10: Number of herds in sample | B10: 9 | C10: 18 | D10: 9 | F10: =B10 -> 9 | G10: =C10 -> 18 | H10: 9
A11: Average head of output | B11: 47.55555556 | C11: 57.16666667 | D11: 66.77777778 | F11: =B11 -> 47.55555556 | G11: 57.16666667 | H11: 66.77777778
A13: Cattle output | B13: 1151.472477 | C13: 1171.004779 | D13: 1184.211453 | F13: =B13/B$63 -> 3.414086527 | G13: 3.270878642 | H13: 3.164094046
A14: Other income | B14: 30.19392523 | C14: 16.89255419 | D14: 7.898894155 | F14: 0.08952421829 | G14: 0.04718468767 | H14: 0.02110505172
A15: Gross Output | B15: 1181.666402 | C15: 1187.897333 | D15: 1192.110348 | F15: 3.503610746 | G15: 3.31806333 | H15: 3.185199098
A16: Purchase costs | B16: 676.046729 | C16: 691.0527521 | D16: 701.1990047 | F16: 2.00446131 | G16: 1.930265127 | H16: 1.873533303
A17: Output less purchase costs | B17: 505.6196729 | C17: 496.8445806 | D17: 490.9113428 | F17: 1.499149435 | G17: 1.387798203 | H17: 1.311665795
A19: Variable Costs
A20: Purchased feed including minerals | B20: 200.6271177 | C20: 189.0313314 | D20: 181.1908946 | F20: =B20/B$63 -> 0.5948542876 | G20: =C20/C$63 -> 0.5280068503 | H20: =D20/D$63 -> 0.4841238692
A21: Home-grown feed | B21: 182.1313084 | C21: 85.40850141 | D21: 20.00982622 | F21: 0.5400146846 | G21: 0.2385650753 | H21: 0.05346424563
A22: Purchased forage | B22: 0 | C22: 1.914231857 | D22: 3.208530806 | F22: 0 | G22: 0.005346878349 | H22: 0.008572872007
A23: Home-grown forage (excludes contract) | B23: 15.91589445 | C23: 14.03200413 | D23: 12.75822047 | F23: 0.04719022115 | G23: 0.0391945306 | H23: 0.0340886835
A24: Total feed and forage | B24: 398.6743206 | C24: 290.3860688 | D24: 217.1674721 | F24: 1.182059193 | G24: 0.8111133345 | H24: 0.5802496703
A25: Vet and medicine | B25: 18.57060748 | C25: 17.46912347 | D25: 16.72436019 | F25: 0.05506137757 | G25: 0.0487951748 | H25: 0.04468581042
A26: Bedding | B26: 51.5817757 | C26: 38.44769086 | D26: 29.5671406 | F26: 0.1529386495 | G26: 0.1073930125 | H26: 0.07900042958
A27: Other livestock expenses | B27: 42.93191589 | C27: 37.63649387 | D27: 34.05601896 | F27: 0.1272920357 | G27: 0.1051271577 | H27: 0.09099426163
A28: Total variable costs | B28: 511.7586197 | C28: 383.939377 | D28: 297.5149918 | F28: 1.517351256 | G28: 1.07242868 | H28: 0.794930172
A30: Gross Margin | B30: -6.138946777 | C30: 112.9052035 | D30: 193.396351 | F30: =B30/B$63 -> -0.01820182063 | G30: =C30/C$63 -> 0.3153695234 | H30: =D30/D$63 -> 0.5167356227
A32: Fixed Costs
A33: Labour - paid | B33: 61.04479606 | C33: 56.00037544 | D33: 52.58961395 | F33: =B33/B$63 -> 0.1809962635 | G33: =C33/C$63 -> 0.1564215923 | H33: =D33/D$63 -> 0.1405141657
A34: Machinery repairs and spares | B34: 11.37789953 | C34: 8.835403047 | D34: 7.116305901 | F34: 0.03373518193 | G34: 0.02467925977 | H34: 0.01901405451
A35: Contracting | B35: 9.696610254 | C35: 7.942728251 | D35: 6.756849109 | F35: 0.02875020211 | G35: 0.02218581911 | H35: 0.01805362207
A36: Electricity | B36: 2.525700935 | C36: 1.908576814 | D36: 1.491311216 | F36: 0.007488638859 | G36: 0.005331082549 | H36: 0.003984633764
A37: Fuel | B37: 16.33153311 | C37: 12.48286262 | D37: 9.88060201 | F37: 0.04842257916 | G37: 0.03486743137 | H37: 0.02639997604
A38: Property maintenance and water | B38: 20.53709652 | C38: 19.21953459 | D38: 18.32867123 | F38: 0.06089196744 | G38: 0.05368446514 | H38: 0.04897236836
A39: Lant Rent (Actual) | B39: 4.296186466 | C39: 4.291097544 | D39: 3.984635408 | F39: 0.01273808331 | G39: 0.01198599661 | H39: 0.01064654554
A40: Overheads | B40: 28.43227614 | C40: 29.64944508 | D40: 30.47242818 | F40: 0.08430097364 | G40: 0.08281754134 | H40: 0.08141926707
A41: Cash Only fixed costs | B41: 154.242099 | C41: 140.3300234 | D41: 130.620417 | F41: 0.45732389 | G41: 0.3919731882 | H41: 0.3490046331
A42: Cash Only Cost of Production | B42: 1342.047448 | C42: 1215.322153 | D42: 1129.334414 | F42: 3.979136456 | G42: 3.394666995 | H42: 3.017468108
A43: Cash Only Net Margin | B43: -160.3810458 | C43: -27.42481985 | D43: 62.77593398 | F43: -0.4755257106 | G43: -0.07660366478 | H43: 0.1677309896
A45: Depreciation | B45: 40.48177711 | C45: 45.58959239 | D45: 49.04321789 | F45: =B45/B$63 -> 0.1200274367 | G45: 0.1273419433 | H45: 0.1310385517
A46: Finance costs (Imputed) | B46: 20.42562664 | C46: 18.42429331 | D46: 17.07110112 | F46: 0.06056146207 | G46: 0.05146317813 | H46: 0.04561226734
A47: Labour - unpaid (Imputed) | B47: 32.98872059 | C47: 19.98466537 | D47: 11.19203403 | F47: 0.09781071524 | G47: 0.05582164678 | H47: 0.02990399066
A48: Land Rent (Imputed) | B48: 7.637664828 | C48: 5.92580137 | D48: 5.071354156 | F48: 0.02264548143 | G48: 0.01655209056 | H48: 0.01355014887
A49: Non-Cash fixed costs | B49: 101.5337892 | C49: 89.92435244 | D49: 82.37770719 | F49: 0.3010450955 | G49: 0.2511788587 | H49: 0.2201049586
A50: Full Investment fixed costs | B50: 255.7758882 | C50: 230.2543758 | D50: 212.9981242 | F50: 0.7583689854 | G50: 0.6431520469 | H50: 0.5691095916
A51: Full Investment Cost of Production (inc purchase costs) | B51: 1443.581237 | C51: 1305.246505 | D51: 1211.712121 | F51: 4.280181552 | G51: 3.645845854 | H51: 3.237573067
A52: Full Investment Net Margin | B52: -261.9148349 | C52: -117.3491723 | D52: -19.60177321 | F52: -0.7765708061 | G52: -0.3277825235 | H52: -0.05237396897
A55: Physical Performance
A56: Mortality % | B56: 1.773843379 | C56: 1.783018745 | D56: 1.789222626
A57: Average age at start (days) | B57: 223.1705607 | C57: 228.4175306 | D57: 231.9652449
A58: Average age at sale (days) | B58: 440.4392523 | C58: 435.5758719 | D58: 432.2875199
A59: Feeding period (days) | B59: 217.2686916 | C59: 207.1583413 | D59: 200.3222751
A60: Average liveweight at start (kg) | B60: 333.7978613 | C60: 329.4721143 | D60: 326.5472806
A61: Average liveweight at sale (kg) | B61: 614.2336462 | C61: 624.4269562 | D61: 631.3191152
A62: Daily liveweight gain (kg per day) | B62: 1.317238717 | C62: 1.461576735 | D62: 1.559170213
A63: Average carcase weight (kg) | B63: 337.2710291 | C63: 358.0092405 | D63: 374.2655674
A65: Purchase value per head (£) | B65: 666.5043012 | C65: 681.0782008 | D65: 690.9322752
A66: Return per head finished (£) | B66: 1151.472477 | C66: 1193.737238 | D66: 1226.867857
A67: Return per head store (£) | B67: n.a | C67: 916.5057471 | D67: 916.5057471
A69: Purchase price (£ per kg lwt) | B69: 1.980249177 | C69: 2.044304243 | D69: 2.087614778
A70: Liveweight sale price all animals (£ per kg lwt) | B70: 1.883399033 | C70: 1.883291661 | D70: 1.883219061
A71: Liveweight sale price: finished cattle (£ per kg lwt) | B71: 1.883399033 | C71: 1.85843961 | D71: 1.838874348
A72: Deadweight sale price : finished cattle (£ per kg dwt) | B72: 3.432474273 | C72: 3.34826167 | D72: 3.28224886
A74: Finished (%) | B74: 100 | C74: 91.8001885 | D74: 86.25592417
A75: Store (%) | B75: 0 | C75: 8.199811499 | D75: 13.74407583
A76: Output heifers (%) | B76: 27.3364486 | C76: 20.35815269 | D76: 15.63981043
A77: Output steers (%) | B77: 10.28037383 | C77: 5.466540999 | D77: 2.211690363
A78: Output bulls (%) | B78: 62.38317757 | C78: 74.17530631 | D78: 82.14849921
A80: Total FW concentrate use (kg per head) | B80: 2769.883186 | C80: 1918.996233 | D80: 1343.672985
A81: Total DM concentrate use (kg per head) | B81: 2035.151176 | C81: 1432.356995 | D81: 1024.780518
A82: Average concentrate cost (£ per tonne) | B82: 150.8678589 | C82: 151.6525748 | D82: 152.7463308
A83: Total FW forage (kg per head) | B83: 938.3177575 | C83: 1770.377003 | D83: 2332.969985
A84: Total DM forage (Kg per head) | B84: 288.9485983 | C84: 524.4151746 | D84: 683.6248028
A86: Number of full grazing weeks | B86: 5.703485102 | C86: 3.598009428 | D86: 1.703081322
A87: Stocking rate (LU per ha) | B87: 3.722557728 | C87: 3.955919082 | D87: 4.196576653
A88: Inorganic nitrogen use (kg per ha) | B88: 112.0232442 | C88: 110.9767609 | D88: 110.0349259
A91: Labour use - paid hours per head | B91: 6.269575637 | C91: 4.667010535 | D91: 3.583443609
A92: Labour use - unpaid hours per head | B92: 3.054293968 | C92: 1.791724565 | D92: 0.938044147

Sheet Over 16 Months
E1: AHDB Beef and Lamb
E2: Stocktake
E3: Costs of Production 2015/16
C5: Beef Finishing - over 16 months of age
C7: (£ per head output) | G7: (£ per dwt kg output)
A8: Financial Performance (£ per head output) | B8: Bottom Third | C8: Average | D8: Top Third | F8: Bottom Third | G8: Average | H8: Top Third
A10: Number of herds in sample | B10: 23 | C10: 71 | D10: 23 | F10: =B10 -> 23 | G10: =C10 -> 71 | H10: 23
A11: Average head of output | B11: 57.2173913 | C11: 126 | D11: 77.43478261 | F11: =B11 -> 57.2173913 | G11: 126 | H11: 77.43478261
A13: Cattle output | B13: 1180.880129 | C13: 1117.82514 | D13: 1290.729135 | F13: =B13/B$63 -> 3.597986635 | G13: 3.313235686 | H13: 3.941105824
A14: Other income | B14: 19.57370821 | C14: 7.44852448 | D14: 16.20718697 | F14: 0.05963851773 | G14: 0.0220774397 | H14: 0.04948694286
A15: Gross Output | B15: 1200.453837 | C15: 1125.273664 | D15: 1306.936322 | F15: 3.657625153 | G15: 3.335313126 | H15: 3.990592767
A16: Purchase costs | B16: 609.1753116 | C16: 560.5624436 | D16: 431.0309489 | F16: 1.856077154 | G16: 1.661508071 | H16: 1.316107723
A17: Output less purchase costs | B17: 591.2785258 | C17: 564.7112208 | D17: 875.9053734 | F17: 1.801547999 | G17: 1.673805055 | H17: 2.674485044
A19: Variable Costs
A20: Purchased feed including minerals | B20: 126.117509 | C20: 129.828351 | D20: 76.15331308 | F20: =B20/B$63 -> 0.3842634832 | G20: =C20/C$63 -> 0.3848114613 | H20: =D20/D$63 -> 0.2325261416
A21: Home-grown feed | B21: 105.2604182 | C21: 33.74011486 | D21: 32.98390074 | F21: 0.3207146674 | G21: 0.10000576 | H21: 0.100712876
A22: Purchased forage | B22: 10.56218401 | C22: 16.92327231 | D22: 7.660583942 | F22: 0.03218158723 | G22: 0.05016060896 | H22: 0.02339078832
A23: Home-grown forage (excludes contract) | B23: 35.5991157 | C23: 27.44889926 | D23: 53.38881922 | F23: 0.1084658293 | G23: 0.08135858581 | H23: 0.163017151
A24: Total feed and forage | B24: 277.5392269 | C24: 207.9406374 | D24: 170.186617 | F24: 0.8456255672 | G24: 0.616336416 | H24: 0.5196469569
A25: Vet and medicine | B25: 19.58659574 | C25: 9.852241225 | D25: 13.31906232 | F25: 0.05967778437 | G25: 0.02920206037 | H25: 0.04066835764
A26: Bedding | B26: 42.42078267 | C26: 24.59284485 | D26: 33.03705783 | F26: 0.1292505525 | G26: 0.0728932355 | H26: 0.1008751856
A27: Other livestock expenses | B27: 36.63346505 | C27: 40.48452269 | D27: 33.04612577 | F27: 0.1116173559 | G27: 0.1199961967 | H27: 0.1009028736
A28: Total variable costs | B28: 376.1800704 | C28: 282.8702462 | D28: 249.5888629 | F28: 1.14617126 | G28: 0.8384279085 | H28: 0.7620933737
A30: Gross Margin | B30: 215.0984555 | C30: 281.8409747 | D30: 626.3165105 | F30: =B30/B$63 -> 0.6553767388 | G30: =C30/C$63 -> 0.835377146 | H30: =D30/D$63 -> 1.91239167
A32: Fixed Costs
A33: Labour - paid | B33: 72.28493923 | C33: 53.08646096 | D33: 53.03649497 | F33: =B33/B$63 -> 0.2202427146 | G33: =C33/C$63 -> 0.1573483639 | H33: =D33/D$63 -> 0.1619413659
A34: Machinery repairs and spares | B34: 27.29737457 | C34: 22.7160608 | D34: 31.85809576 | F34: 0.08317151457 | G34: 0.06733044427 | H34: 0.09727534873
A35: Contracting | B35: 32.69944008 | C35: 26.20541284 | D35: 76.93985265 | F35: 0.09963089857 | G35: 0.07767288987 | H35: 0.2349277576
A36: Electricity | B36: 2.785106383 | C36: 3.2373463 | D36: 3.576305446 | F36: 0.008485853301 | G36: 0.009595500143 | H36: 0.01091987299
A37: Fuel | B37: 26.87111112 | C37: 25.09722211 | D37: 27.97144997 | F37: 0.08187274583 | G37: 0.0743882106 | H37: 0.08540788408
A38: Property maintenance and water | B38: 26.24896556 | C38: 14.4837223 | D38: 24.75676807 | F38: 0.07997715003 | G38: 0.04292977845 | H38: 0.07559219061
A39: Land Rent (Actual) | B39: 29.66163896 | C39: 21.39387061 | D39: 43.6238132 | F39: 0.0903751176 | G39: 0.06341147021 | H39: 0.1332007309
A40: Overheads | B40: 53.72284385 | C40: 29.78466715 | D40: 32.63456537 | F40: 0.1636864483 | G40: 0.08828180596 | H40: 0.09964621709
A41: Cash Only fixed costs | B41: 271.5714198 | C41: 196.0047631 | D41: 294.3973454 | F41: 0.8274424427 | G41: 0.5809584634 | H41: 0.8989113679
A42: Cash Only Cost of Production | B42: 1256.926802 | C42: 1039.437453 | D42: 975.0171573 | F42: 3.829690856 | G42: 3.080894443 | H42: 2.977112464
A43: Cash Only Net Margin | B43: -56.47296427 | C43: 85.8362116 | D43: 331.919165 | F43: -0.1720657039 | G43: 0.2544186826 | H43: 1.013480302
A45: Depreciation | B45: 120.2327398 | C45: 58.69667237 | D45: 64.74845296 | F45: =B45/B$63 -> 0.3663333644 | G45: 0.1739770404 | H45: 0.1977025993
A46: Finance costs (Imputed) | B46: 32.26916518 | C46: 25.16350968 | D46: 38.78898551 | F46: 0.09831990748 | G46: 0.07458468708 | H46: 0.1184380925
A47: Labour - unpaid (Imputed) | B47: 59.6952613 | C47: 34.61300472 | D47: 49.45043831 | F47: 0.1818836197 | G47: 0.102593007 | H47: 0.1509917186
A48: Land Rent (Imputed) | B48: 69.21049091 | C48: 20.55489529 | D48: 37.16102606 | F48: 0.2108752744 | G48: 0.06092474588 | H48: 0.1134672893
A49: Non-Cash fixed costs | B49: 281.4076571 | C49: 139.0280821 | D49: 190.1489028 | F49: 0.857412166 | G49: 0.4120794804 | H49: 0.5805996997
A50: Full Investment fixed costs | B50: 552.9790769 | C50: 335.0328451 | D50: 484.5462483 | F50: 1.684854609 | G50: 0.9930379438 | H50: 1.479511068
A51: Full Investment Cost of Production (inc purchase costs) | B51: 1538.334459 | C51: 1178.465535 | D51: 1165.16606 | F51: 4.687103022 | G51: 3.492973924 | H51: 3.557712164
A52: Full Investment Net Margin | B52: -337.8806214 | C52: -53.19187046 | D52: 141.7702622 | F52: -1.02947787 | G52: -0.1576607979 | H52: 0.4328806026
A55: Physical Performance
A56: Mortality % | B56: 0.890813998 | C56: 1.810552842 | D56: 2.215360577
A57: Average age at start (days) | B57: 224.5706687 | C57: 384.1969343 | D57: 150.2195396
A58: Average age at sale (days) | B58: 656.3267481 | C58: 710.1706942 | D58: 648.9556427
A59: Feeding period (days) | B59: 431.7560794 | C59: 325.9737599 | D59: 498.7361031
A60: Average liveweight at start (kg) | B60: 257.5001247 | C60: 320.4086505 | D60: 188.3411304
A61: Average liveweight at sale (kg) | B61: 600.9194532 | C61: 623.7893152 | D61: 603.3565409
A62: Daily liveweight gain (kg per day) | B62: 0.8416874852 | C62: 1.031348834 | D62: 0.8413136392
A63: Average carcase weight (kg) | B63: 328.2058131 | C63: 337.3817156 | D63: 327.5043079
A65: Purchase value per head (£) | B65: 601.5103076 | C65: 550.7842623 | D65: 421.8691142
A66: Return per head finished (£) | B66: 1182.122742 | C66: 1117.768011 | D66: 1289.729805
A67: Return per head store (£) | B67: 1144.093023 | C67: 1120.457895 | D67: 1334.225
A69: Purchase price (£ per kg lwt) | B69: 2.602193493 | C69: 1.955308723 | D69: 2.385481795
A70: Liveweight sale price all animals (£ per kg lwt) | B70: 1.96726326 | C70: 1.803412569 | D70: 2.15395381
A71: Liveweight sale price: finished cattle (£ per kg lwt) | B71: 1.951239093 | C71: 1.796123439 | D71: 2.144454585
A72: Deadweight sale price : finished cattle (£ per kg dwt) | B72: 3.605037044 | C72: 3.330440909 | D72: 3.961121955
A74: Finished (%) | B74: 96.7325228 | C74: 97.87614576 | D74: 97.75407075
A75: Store (%) | B75: 3.267477204 | C75: 2.123854237 | D75: 2.245929253
A76: Output heifers (%) | B76: 33.35866261 | C76: 33.84752962 | D76: 26.05277934
A77: Output steers (%) | B77: 53.2674772 | C77: 61.28996199 | D77: 71.25210556
A78: Output bulls (%) | B78: 13.37386018 | C78: 4.862508384 | D78: 2.695115104
A80: Total FW concentrate use (kg per head) | B80: 1571.018233 | C80: 2111.748603 | D80: 674.0864696
A81: Total DM concentrate use (kg per head) | B81: 1052.088036 | C81: 1281.797389 | D81: 544.5498833
A82: Average concentrate cost (£ per tonne) | B82: 149.9220765 | C82: 97.33229629 | D82: 157.2162135
A83: Total FW forage (kg per head) | B83: 5617.553191 | C83: 3360.239213 | D83: 6381.218417
A84: Total DM forage (Kg per head) | B84: 1876.973406 | C84: 1117.99251 | D84: 1868.156089
A86: Number of full grazing weeks | B86: 24.04973305 | C86: 22.52873237 | D86: 25.88934105
A87: Stocking rate (LU per ha) | B87: 1.306254076 | C87: 1.563637951 | D87: 1.648568836
A88: Inorganic nitrogen use (kg per ha) | B88: 50.89439441 | C88: 50.83940505 | D88: 26.10410283
A91: Labour use - paid hours per head | B91: 7.141125569 | C91: 4.621372321 | D91: 5.470544837
A92: Labour use - unpaid hours per head | B92: 6.182658086 | C92: 3.468381439 | D92: 5.066411857

Sheet 16 - 24 Months
E1: AHDB Beef and Lamb
E2: Stocktake
E3: Costs of Production 2015/16
C5: Beef Finishing - 16 to 24 months of age
C7: (£ per head output) | G7: (£ per dwt kg output)
A8: Financial Performance (£ per head output) | B8: Bottom Half | C8: Average | D8: Top Half | F8: Bottom Half | G8: Average | H8: Top Half
A10: Number of herds in sample | B10: 24 | C10: 49 | D10: 25 | F10: =B10 -> 24 | G10: =C10 -> 49 | H10: 25
A11: Average head of output | B11: 62.75 | C11: 76.69387755 | D11: 91.16 | F11: =B11 -> 62.75 | G11: 76.69387755 | H11: 91.16
A13: Cattle output | B13: 1166.062165 | C13: 1190.234029 | D13: 1206.489627 | F13: =B13/B$63 -> 3.525449143 | G13: =C13/C$63 -> 3.601115351 | H13: 3.652000222
A14: Other income | B14: 17.10424967 | C14: 16.93573709 | D14: 16.97038175 | F14: 0.05171264806 | G14: 0.05123995899 | H14: 0.05136872835
A15: Gross Output | B15: 1183.166414 | C15: 1207.169766 | D15: 1223.460009 | F15: 3.577161791 | G15: 3.65235531 | H15: 3.703368951
A16: Purchase costs | B16: 628.006992 | C16: 535.6027594 | D16: 477.2017376 | F16: 1.898703842 | G16: 1.620494182 | H16: 1.444472304
A17: Output less purchase costs | B17: 555.1594223 | C17: 671.5670064 | D17: 746.2582712 | F17: 1.678457949 | G17: 2.031861128 | H17: 2.258896646
A19: Variable Costs
A20: Purchased feed including minerals | B20: 147.7693236 | C20: 119.9386625 | D20: 101.0752665 | F20: =B20/B$63 -> 0.4467628323 | G20: =C20/C$63 -> 0.362880701 | H20: =D20/D$63 -> 0.3059511557
A21: Home-grown feed | B21: 89.96926318 | C21: 60.60383978 | D21: 43.50702919 | F21: 0.2720112798 | G21: 0.1833600893 | H21: 0.1316941951
A22: Purchased forage | B22: 9.648266867 | C22: 9.311492789 | D22: 8.978630978 | F22: 0.02917037804 | G22: 0.0281724088 | H22: 0.02717798943
A23: Home-grown forage (excludes contract) | B23: 35.84503021 | C23: 42.98263488 | D23: 47.84722893 | F23: 0.108373151 | G23: 0.1300462115 | H23: 0.1448318218
A24: Total feed and forage | B24: 283.2318839 | C24: 232.83663 | D24: 201.4081556 | F24: 0.8563176411 | G24: 0.7044594106 | H24: 0.609655162
A25: Vet and medicine | B25: 18.6602324 | C25: 15.62421501 | D25: 13.484638 | F25: 0.05641697529 | G25: 0.04727188028 | H25: 0.0408175088
A26: Bedding | B26: 40.81669987 | C26: 36.50627728 | D26: 33.57202282 | F26: 0.1234043981 | G26: 0.1104516526 | H26: 0.1016212921
A27: Other livestock expenses | B27: 37.46857238 | C27: 32.74782331 | D27: 29.73964458 | F27: 0.1132817361 | G27: 0.09908025345 | H27: 0.09002082255
A28: Total variable costs | B28: 380.1773885 | C28: 317.7149456 | D28: 278.204461 | F28: 1.149420751 | G28: 0.961263197 | H28: 0.8421147855
A30: Gross Margin | B30: 174.9820338 | C30: 353.8520608 | D30: 468.0538102 | F30: =B30/B$63 -> 0.5290371987 | G30: =C30/C$63 -> 1.070597931 | H30: =D30/D$63 -> 1.416781861
A32: Fixed Costs
A33: Labour - paid | B33: 49.5810716 | C33: 46.80918507 | D33: 44.50198493 | F33: =B33/B$63 -> 0.1499024252 | G33: =C33/C$63 -> 0.1416236394 | H33: =D33/D$63 -> 0.1347058899
A34: Machinery repairs and spares | B34: 21.841428 | C34: 23.63236972 | D34: 24.68347712 | F34: 0.06603493875 | G34: 0.07150097151 | H34: 0.07471598752
A35: Contracting | B35: 24.91418119 | C35: 47.83338325 | D35: 63.05363533 | F35: 0.0753250396 | G35: 0.1447224046 | H35: 0.190861061
A36: Electricity | B36: 3.065869854 | C36: 3.026769558 | D36: 3.096709083 | F36: 0.009269289903 | G36: 0.00915764972 | H36: 0.00937362577
A37: Fuel | B37: 26.54698756 | C37: 25.34193722 | D37: 24.67450573 | F37: 0.08026163388 | G37: 0.07667335744 | H37: 0.07468883146
A38: Property maintenance and water | B38: 20.49247259 | C38: 23.88845632 | D38: 26.20814058 | F38: 0.06195653382 | G38: 0.07227577491 | H38: 0.07933108837
A39: Land Rent (Actual) | B39: 33.89132322 | C39: 31.02352028 | D39: 30.73882884 | F39: 0.1024663522 | G39: 0.09386328438 | H39: 0.09304531696
A40: Overheads | B40: 44.28712642 | C40: 37.8967983 | D40: 33.59823261 | F40: 0.1338968167 | G40: 0.1146587468 | H40: 0.1017006282
A41: Cash Only fixed costs | B41: 224.6204604 | C41: 239.4524197 | D41: 250.5555142 | F41: 0.6791130299 | G41: 0.7244758288 | H41: 0.7584224291
A42: Cash Only Cost of Production | B42: 1232.804841 | C42: 1092.770125 | D42: 1005.961713 | F42: 3.727237622 | G42: 3.306233208 | H42: 3.045009519
A43: Cash Only Net Margin | B43: -49.63842665 | C43: 114.3996411 | D43: 217.4982959 | F43: -0.1500758313 | G43: 0.3461221019 | H43: 0.6583594316
A45: Depreciation | B45: 89.909845 | C45: 69.35062515 | D45: 56.78319588 | F45: =B45/B$63 -> 0.2718316361 | G45: 0.2098239462 | H45: 0.1718806688
A46: Finance costs (Imputed) | B46: 27.9797077 | C46: 30.35009838 | D46: 32.02221328 | F46: 0.08459329143 | G46: 0.09182581117 | H46: 0.09693007499
A47: Labour - unpaid (Imputed) | B47: 57.26378969 | C47: 54.47714818 | D47: 53.57848105 | F47: 0.1731302022 | G47: 0.1648234631 | H47: 0.1621801135
A48: Land Rent (Imputed) | B48: 36.71560016 | C48: 27.51142365 | D48: 22.25915192 | F48: 0.1110052148 | G48: 0.08323725219 | H48: 0.06737764332
A49: Non-Cash fixed costs | B49: 211.8689425 | C49: 181.6892954 | D49: 164.6430421 | F49: 0.6405603445 | G49: 0.5497104727 | H49: 0.4983685006
A50: Full Investment fixed costs | B50: 436.489403 | C50: 421.1417151 | D50: 415.1985564 | F50: 1.319673374 | G50: 1.274186301 | H50: 1.25679093
A51: Full Investment Cost of Production (inc purchase costs) | B51: 1444.673784 | C51: 1274.45942 | D51: 1170.604755 | F51: 4.367797967 | G51: 3.855943681 | H51: 3.54337802
A52: Full Investment Net Margin | B52: -261.5073692 | C52: -67.28965424 | D52: 52.8552538 | F52: -0.7906361758 | G52: -0.2035883709 | H52: 0.159990931
A55: Physical Performance
A56: Mortality % | B56: 0.9720968712 | C56: 1.649719661 | D56: 2.077959016
A57: Average age at start (days) | B57: 218.0059761 | C57: 188.0234167 | D57: 169.2290478
A58: Average age at sale (days) | B58: 609.9588315 | C58: 606.5750397 | D58: 603.123738
A59: Feeding period (days) | B59: 391.9528554 | C59: 418.551623 | D59: 433.8946902
A60: Average liveweight at start (kg) | B60: 266.8078778 | C60: 234.2551457 | D60: 213.9263596
A61: Average liveweight at sale (kg) | B61: 603.2015274 | C61: 606.6487491 | D61: 608.7514256
A62: Daily liveweight gain (kg per day) | B62: 0.9019206635 | C62: 0.9239397357 | D62: 0.9408222366
A63: Average carcase weight (kg) | B63: 330.7556335 | C63: 330.5181625 | D63: 330.3640618
A65: Purchase value per head (£) | B65: 620.5107874 | C65: 527.047087 | D65: 468.0473133
A66: Return per head finished (£) | B66: 1182.304843 | C66: 1198.300132 | D66: 1208.750386
A67: Return per head store (£) | B67: 864.6233766 | C67: 961.484375 | D67: 1107.72549
A69: Purchase price (£ per kg lwt) | B69: 2.611595949 | C69: 2.467652408 | D69: 2.370257163
A70: Liveweight sale price all animals (£ per kg lwt) | B70: 1.936648688 | C70: 1.965885325 | D70: 1.986217469
A71: Liveweight sale price: finished cattle (£ per kg lwt) | B71: 1.946349069 | C71: 1.96879785 | D71: 1.984196076
A72: Deadweight sale price : finished cattle (£ per kg dwt) | B72: 3.583764966 | C72: 3.632781878 | D72: 3.664730724
A74: Finished (%) | B74: 94.88711819 | C74: 96.59393294 | D74: 97.76217639
A75: Store (%) | B75: 5.112881806 | C75: 3.406067057 | D75: 2.237823607
A76: Output heifers (%) | B76: 34.66135458 | C76: 34.08728047 | D76: 33.611233
A77: Output steers (%) | B77: 51.99203187 | C77: 54.8696115 | D77: 56.12110575
A78: Output bulls (%) | B78: 13.34661355 | C78: 11.04310804 | D78: 10.26766125
A80: Total FW concentrate use (kg per head) | B80: 1692.476757 | C80: 1301.065195 | D80: 1058.373413
A81: Total DM concentrate use (kg per head) | B81: 1129.482242 | C81: 927.5315178 | D81: 810.1488317
A82: Average concentrate cost (£ per tonne) | B82: 145.9966278 | C82: 144.6455046 | D82: 142.6856014
A83: Total FW forage (kg per head) | B83: 5474.369188 | C83: 5060.484299 | D83: 5034.181659
A84: Total DM forage (Kg per head) | B84: 1811.509297 | C84: 1575.522086 | D84: 1508.415532
A86: Number of full grazing weeks | B86: 18.71781212 | C86: 18.81904599 | D86: 18.16346867
A87: Stocking rate (LU per ha) | B87: 1.511057253 | C87: 1.897541067 | D87: 2.198371124
A88: Inorganic nitrogen use (kg per ha) | B88: 61.39704365 | C88: 64.58276157 | D88: 67.23390652
A91: Labour use - paid hours per head | B91: 4.843804438 | C91: 4.693119196 | D91: 4.549351669
A92: Labour use - unpaid hours per head | B92: 5.81520161 | C92: 5.594042852 | D92: 5.55391079

Sheet 24 Months and Older
E1: AHDB Beef and Lamb
E2: Stocktake
E3: Costs of Production 2015/16
C5: Beef Finishing - over 24 months of age
C7: (£ per head output) | G7: (£ per dwt kg output)
A8: Financial Performance (£ per head output) | B8: Bottom Half | C8: Average | D8: Top Half | F8: Bottom Half | G8: Average | H8: Top Half
A10: Number of herds in sample | B10: 11 | C10: 22 | D10: 11 | F10: =B10 -> 11 | G10: =C10 -> 22 | H10: 11
A11: Average head of output | B11: 59.36363636 | C11: 234.5909091 | D11: 409.8181818 | F11: =B11 -> 59.36363636 | G11: 234.5909091 | H11: 409.8181818
A13: Cattle output | B13: 1177.828944 | C13: 1064.596826 | D13: 1048.194747 | F13: =B13/B$63 -> 3.561573882 | G13: 3.110082291 | H13: 3.048232738
A14: Other income | B14: 3.36906585 | C14: 0.4262739779 | D14: 0 | F14: 0.01018753784 | G14: 0.001245304435 | H14: 0
A15: Gross Output | B15: 1181.19801 | C15: 1065.0231 | D15: 1048.194747 | F15: 3.57176142 | G15: 3.111327596 | H15: 3.048232738
A16: Purchase costs | B16: 565.0977182 | C16: 577.6923716 | D16: 579.5167524 | F16: 1.708768735 | G16: 1.687653739 | H16: 1.68528028
A17: Output less purchase costs | B17: 616.1002914 | C17: 487.3307288 | D17: 468.677995 | F17: 1.862992685 | G17: 1.423673857 | H17: 1.362952458
A19: Variable Costs
A20: Purchased feed including minerals | B20: 54.36924318 | C20: 137.2899233 | D20: 149.3012818 | F20: =B20/B$63 -> 0.1644042435 | G20: =C20/C$63 -> 0.4010747999 | H20: =D20/D$63 -> 0.434179866
A21: Home-grown feed | B21: 28.22817764 | C21: 13.01934464 | D21: 10.81629053 | F21: 0.08535767502 | G21: 0.03803433582 | H21: 0.03145462326
A22: Purchased forage | B22: 3.347540816 | C22: 22.55435074 | D22: 25.33652618 | F22: 0.01012244944 | G22: 0.06588962608 | H22: 0.07368061016
A23: Home-grown forage (excludes contract) | B23: 100.9896402 | C23: 15.99135876 | D23: 3.679052246 | F23: 0.3053771659 | G23: 0.04671669166 | H23: 0.01069897319
A24: Total feed and forage | B24: 186.9346018 | C24: 188.8549774 | D24: 189.1331507 | F24: 0.5652615338 | G24: 0.5517154535 | H24: 0.5500140726
A25: Vet and medicine | B25: 14.73361409 | C25: 5.678037202 | D25: 4.366304348 | F25: 0.0445521868 | G25: 0.0165876532 | H25: 0.01269755634
A26: Bedding | B26: 37.30474732 | C26: 15.89362527 | D26: 12.79214729 | F26: 0.1128038281 | G26: 0.04643117587 | H26: 0.03720057009
A27: Other livestock expenses | B27: 34.18975498 | C27: 46.10932377 | D27: 47.83591615 | F27: 0.1033845695 | G27: 0.1347024411 | H27: 0.1391106052
A28: Total variable costs | B28: 273.1627182 | C28: 256.5359637 | D28: 254.1275185 | F28: 0.8260021183 | G28: 0.7494367237 | H28: 0.7390228042
A30: Gross Margin | B30: 342.9375733 | C30: 230.7947652 | D30: 214.5504764 | F30: =B30/B$63 -> 1.036990567 | G30: =C30/C$63 -> 0.674237133 | H30: =D30/D$63 -> 0.6239296542
A32: Fixed Costs
A33: Labour - paid | B33: 80.95804945 | C33: 57.90008957 | D33: 54.56006122 | F33: =B33/B$63 -> 0.2448047112 | G33: =C33/C$63 -> 0.1691476423 | H33: =D33/D$63 -> 0.1586649477
A34: Machinery repairs and spares | B34: 23.29450463 | C34: 22.10250823 | D34: 21.92984327 | F34: 0.07043900537 | G34: 0.06456962648 | H34: 0.06377370842
A35: Contracting | B35: 31.21974142 | C35: 10.31072107 | D35: 7.281974335 | F35: 0.09440370457 | G35: 0.03012144149 | H35: 0.0211765539
A36: Electricity | B36: 2.117457887 | C36: 3.349486534 | D36: 3.527950311 | F36: 0.006402867534 | G36: 0.009785092811 | H36: 0.01025955688
A37: Fuel | B37: 25.311424 | C37: 24.86083844 | D37: 24.7955695 | F37: 0.07653785986 | G37: 0.07262773235 | H37: 0.07210746562
A38: Property maintenance and water | B38: 33.56921689 | C38: 7.553064061 | D38: 3.784530831 | F38: 0.1015081577 | G38: 0.02206530228 | H38: 0.01100571321
A39: Land Rent (Actual) | B39: 42.63162264 | C39: 7.75091134 | D39: 3.365684119 | F39: 0.1289114812 | G39: 0.02264328758 | H39: 0.00978767404
A40: Overheads | B40: 63.42636802 | C40: 23.86879438 | D40: 18.13873769 | F40: 0.1917915984 | G40: 0.06972960362 | H40: 0.05274887532
A41: Cash Only fixed costs | B41: 302.528385 | C41: 157.6964136 | D41: 137.3843513 | F41: 0.9147993858 | G41: 0.4606897289 | H41: 0.3995244951
A42: Cash Only Cost of Production | B42: 1140.788821 | C42: 991.9247489 | D42: 971.0286222 | F42: 3.449570239 | G42: 2.897780192 | H42: 2.823827579
A43: Cash Only Net Margin | B43: 40.40918831 | C43: 73.09835156 | D43: 77.16612517 | F43: 0.122191181 | G43: 0.2135474041 | H43: 0.224405159
A45: Depreciation | B45: 120.9387558 | C45: 50.43350147 | D45: 40.22056201 | F45: =B45/B$63 -> 0.3657002286 | G45: 0.1473349684 | H45: 0.1169645566
A46: Finance costs (Imputed) | B46: 34.15730715 | C46: 21.31305828 | D46: 19.45252267 | F46: 0.1032864523 | G46: 0.06226335028 | H46: 0.05656946534
A47: Labour - unpaid (Imputed) | B47: 66.31328576 | C47: 19.62862132 | D47: 12.86617991 | F47: 0.2005211944 | G47: 0.05734248501 | H47: 0.03741586275
A48: Land Rent (Imputed) | B48: 94.8897407 | C48: 20.9561677 | D48: 9.579254801 | F48: 0.2869320065 | G48: 0.0612207405 | H48: 0.02785722611
A49: Non-Cash fixed costs | B49: 316.2990894 | C49: 112.3313488 | D49: 82.11851938 | F49: 0.9564398818 | G49: 0.3281615442 | H49: 0.2388071108
A50: Full Investment fixed costs | B50: 618.8274744 | C50: 270.0277624 | D50: 219.5028706 | F50: 1.871239268 | G50: 0.7888512731 | H50: 0.6383316059
A51: Full Investment Cost of Production (inc purchase costs) | B51: 1457.087911 | C51: 1104.256098 | D51: 1053.147142 | F51: 4.40601012 | G51: 3.225941736 | H51: 3.06263469
A52: Full Investment Net Margin | B52: -275.8899011 | C52: -39.2329972 | D52: -4.952394217 | F52: -0.8342487008 | G52: -0.1146141401 | H52: -0.01440195176
A55: Physical Performance
A56: Mortality % | B56: 1.723690616 | C56: 1.937136067 | D56: 1.968054407
A57: Average age at start (days) | B57: 277.177638 | C57: 527.6178597 | D57: 563.8950258
A58: Average age at sale (days) | B58: 778.3828487 | C58: 786.6828195 | D58: 787.8851001
A59: Feeding period (days) | B59: 501.2052107 | C59: 259.0649597 | D59: 223.9900742
A60: Average liveweight at start (kg) | B60: 269.7007874 | C60: 383.0701317 | D60: 399.4920886
A61: Average liveweight at sale (kg) | B61: 611.9145333 | C61: 636.4373599 | D61: 639.9895795
A62: Daily liveweight gain (kg per day) | B62: 0.7044041955 | C62: 1.109091314 | D62: 1.167711698
A63: Average carcase weight (kg) | B63: 330.7046219 | C63: 342.3050346 | D63: 343.8696574
A65: Purchase value per head (£) | B65: 557.0560643 | C65: 566.9728614 | D65: 568.4093451
A66: Return per head finished (£) | B66: 1164.282674 | C66: 1059.926892 | D66: 1045.851752
A67: Return per head store (£) | B67: 1352.489362 | C67: 1448.66129 | D67: 1750
A69: Purchase price (£ per kg lwt) | B69: 2.441988019 | C69: 1.580568158 | D69: 1.455788395
A70: Liveweight sale price all animals (£ per kg lwt) | B70: 1.923407837 | C70: 1.683810561 | D70: 1.649104034
A71: Liveweight sale price: finished cattle (£ per kg lwt) | B71: 1.886501981 | C71: 1.67184451 | D71: 1.642892267
A72: Deadweight sale price : finished cattle (£ per kg dwt) | B72: 3.515658262 | C72: 3.113379174 | D72: 3.059121189
A74: Finished (%) | B74: 92.80245023 | C74: 98.79868243 | D74: 99.66725821
A75: Store (%) | B75: 7.19754977 | C75: 1.201317574 | D75: 0.3327417924
A76: Output heifers (%) | B76: 41.34762634 | C76: 33.71439643 | D76: 32.60869565
A77: Output steers (%) | B77: 58.65237366 | C77: 66.28560357 | D77: 67.39130435
A78: Output bulls (%) | B78: 0 | C78: 0 | D78: 0
A80: Total FW concentrate use (kg per head) | B80: 794.3338437 | C80: 2699.244332 | D80: 2975.177462
A81: Total DM concentrate use (kg per head) | B81: 461.9856048 | C81: 1534.514629 | D81: 1689.874312
A82: Average concentrate cost (£ per tonne) | B82: 151.3986563 | C82: 80.57570489 | D82: 77.83669572
A83: Total FW forage (kg per head) | B83: 3854.977029 | C83: 2004.146483 | D83: 1736.047028
A84: Total DM forage (Kg per head) | B84: 1151.099541 | C84: 743.2181742 | D84: 684.1350925
A86: Number of full grazing weeks | B86: 34.99412647 | C86: 31.64662685 | D86: 28.29912723
A87: Stocking rate (LU per ha) | B87: 1.058529862 | C87: 1.120830913 | D87: 1.212520554
A88: Inorganic nitrogen use (kg per ha) | B88: 25.1654364 | C88: 20.69186581 | D88: 16.21829522
A91: Labour use - paid hours per head | B91: 8.192733404 | C91: 4.588268717 | D91: 4.066149053
A92: Labour use - unpaid hours per head | B92: 7.054851301 | C92: 1.862639806 | D92: 1.110529312
